{"text_format":"1","workbook":"xlsx","n_sheets":3,"sheets":["考え","テキストボックス","テキストボックス(2)"],"not_rendered":{"charts":0,"images":0,"macros":1,"external_links":0,"defined_names":4,"comments":0,"pivot_tables":0},"unopened":[],"bounds":{"document_bytes":16777216,"sheet_cells":100000,"rows_first":2000,"rows_last":500,"rows_between":2000,"halvings":0,"cell_chars":16384,"cell_head_chars":4096},"cells_cut":0,"cells_raw":0,"read":"whole","date_system":"1900"}

{"sheet":"考え","index":0,"n_rows":45,"n_cols":6,"rows_kept":45,"cut":false,"hidden":false,"merged":[[44,0,44,1],[0,2,0,4],[0,0,0,1]]}
["ふれはば",null,"ふれはばが大きくなると一往復する時間は?　その理由は?"]
["No","名前","大きい方がが1往復する時間が短い","変わらない","大きい方が1往復する時間が長い","解答"]
[1,"上戸",null,null,"スピードが遅いから",{"$f":"COUNTA(C3:E3)","v":1}]
[2,"大石",null,"なんとなく",null,{"$f":"COUNTA(C4:E4)","v":1}]
[3,"大久保ま",null,"大きかったらスピードが出て小さかったら動く幅が小さいから",null,1]
[4,"大久保た",null,"大きかったらスピードが出るが小さいほど早くかえってくる",null,1]
[5,"織田","大きいほうが速く小さいほうが遅くなるから",null,null,{"$f":"COUNTA(C7:E7)","v":1}]
[6,"菅野",null,"いくら角度が変わっても勢いがつくため周期は変わらない",null,{"$f":"COUNTA(C8:E8)","v":1}]
[7,"木戸",null,"振れ幅の大きさが変わっても振り子の長さが変わらない限り変わらない",null,1]
[8,"木下",null,null,"ふれはばが大きいほうが行って帰ったきょりが長いから",1]
[9,"国仲",null,"小さいと振り子のスピードが遅くなるから",null,1]
[10,"熊田",null,null,"ふれはばが大きいほどきょりがながくなるかる",{"$f":"COUNTA(C12:E12)","v":1}]
[11,"栗山",null,null,"スピードがおちるから",1]
[12,"小池",null,"ふれはばが広いと勢いがついて速くなって小さいとゆっくりになるから",null,1]
[13,"小松",null,null,"高いところから落とすと風の抵抗が大きくなるから",1]
[14,"近藤",null,"わからない",null,1]
[15,"西郷",null,null,"動く長さが長いから",1]
[16,"坂本",null,"振れ幅が広いと抵抗があり振れ幅が狭いと遅くなるから",null,1]
[17,"佐藤",null,null,"角度が大きくなるとその分時間が長くなる",1]
[18,"篠原",null,null,"　角度が大きくなるごとにスピードも遅くなる",1]
[19,"柴咲","スピードが出るから。",null,null,1]
[20,"島田",null,null,"歩いて遠くに行くと時間が、かかるのとおなじだと思ったから",1]
[21,"瀬戸",null,"振り子の糸の長さが同じなら変わらない",null,1]
[22,"高杉",null,"大きい方がスピードが速く小さい方は距離が短い",null,1]
[23,"武田","大きいほうがスピードが速くなるから",null,null,1]
[24,"遠山","スピードがはやいから",null,null,1]
[25,"徳川",null,"上のほうだと往復する長さが長いけどその分スピードが速いから変わらないと思う",null,1]
[26,"長澤",null,null,"大きければ大きいほど遅くなるから",1]
[27,"夏木",null,"大きいほうが勢いが出て速くなり小さいほうが勢いがなく遅くなる",null,1]
[28,null,null,null,null,0]
[29,null,null,null,null,0]
[30,null,null,null,null,0]
[31,null,null,null,null,0]
[32,null,null,null,null,0]
[33,null,null,null,null,0]
[34,null,null,null,null,0]
[35,null,null,null,null,0]
[36,null,null,null,null,0]
[37,null,null,null,null,0]
[38,null,null,null,null,0]
[39,null,null,null,null,0]
[40,null,null,null,null,0]
[41,null,null,null,null,0]
[42,null,null,null,null,0]
["意見の数",null,{"$f":"COUNTA(C3:C44)","v":4},{"$f":"COUNTA(D3:D44)","v":13},{"$f":"COUNTA(E3:E44)","v":10}]

{"sheet":"テキストボックス","index":1,"n_rows":2,"n_cols":20,"rows_kept":2,"cut":false,"hidden":false,"merged":[]}
["大きい方が","時間が短い",null,null,null,null,"大きくても","時間は同じ",null,null,null,null,"大きい方が","時間が長い",null,null,null,null,null,"未記入の児童名"]
[null,null,null,null,null,null,null,null,null,null,null,null,null,null,null,null,null,"               "]

{"sheet":"テキストボックス(2)","index":2,"n_rows":0,"n_cols":0,"rows_kept":0,"cut":false,"hidden":false,"merged":[]}